[Event "Titled Tuesday Blitz May 2 Late 2023"]
[White "Nunez V, Gustavo Eduardo"]
[Black "Ng, Gary"]
[WhiteFideId "4403690"]
[BlackFideId "2604914"]
[WhiteElo "2228"]
[BlackElo "2213"]
[Result "1-0"]
[Round "08"]
[TimeControl "180+2"]
[Date "2023.05.02"]
[WhiteClock "0:00:25"]
[BlackClock "0:00:01"]

1. e4 {[%clk 0:02:35]}  b6 {[%clk 0:01:20]} 2. Nc3 {[%clk 0:02:03]}  Bb7 {[%clk 0:01:20]} 3. g3 {[%clk 0:02:03]}  e6 {[%clk 0:01:21]} 4. Bg2 {[%clk 0:02:03]}  Bb4 {[%clk 0:01:22]} 5. Nge2 {[%clk 0:02:03]}  h5 {[%clk 0:01:20]} 6. h3 {[%clk 0:02:00]}  h4 {[%clk 0:01:20]} 7. g4 {[%clk 0:02:00]}  Ne7 {[%clk 0:01:14]} 8. d4 {[%clk 0:01:56]}  d5 {[%clk 0:01:12]} 9. e5 {[%clk 0:01:54]}  c5 {[%clk 0:01:10]} 10. a3 {[%clk 0:01:51]}  Ba5 {[%clk 0:01:10]} 11. Be3 {[%clk 0:01:48]}  Nbc6 {[%clk 0:01:10]} 12. dxc5 {[%clk 0:01:45]}  Nxe5 {[%clk 0:01:04]} 13. b4 {[%clk 0:01:41]}  bxc5 {[%clk 0:01:05]} 14. bxa5 {[%clk 0:01:40]}  d4 {[%clk 0:01:04]} 15. Bxb7 {[%clk 0:01:33]}  Rb8 {[%clk 0:01:04]} 16. Bf4 {[%clk 0:01:34]}  Rxb7 {[%clk 0:01:01]} 17. Bxe5 {[%clk 0:01:33]}  Qxa5 {[%clk 0:00:53]} 18. O-O {[%clk 0:01:26]}  dxc3 {[%clk 0:00:53]} 19. Bxc3 {[%clk 0:01:27]}  Qc7 {[%clk 0:00:51]} 20. Rb1 {[%clk 0:01:00]}  Nd5 {[%clk 0:00:49]} 21. Rxb7 {[%clk 0:00:56]}  Qxb7 {[%clk 0:00:50]} 22. Bxg7 {[%clk 0:00:55]}  Rg8 {[%clk 0:00:50]} 23. Be5 {[%clk 0:00:55]}  f5 {[%clk 0:00:50]} 24. c4 {[%clk 0:00:49]}  fxg4 {[%clk 0:00:43]} 25. cxd5 {[%clk 0:00:45]}  gxh3+ {[%clk 0:00:43]} 26. Kh2 {[%clk 0:00:46]}  Qf7 {[%clk 0:00:19]} 27. Nf4 {[%clk 0:00:45]}  Qf5 {[%clk 0:00:12]} 28. dxe6 {[%clk 0:00:45]}  Rg2+ {[%clk 0:00:06]} 29. Nxg2 {[%clk 0:00:40]}  hxg2 {[%clk 0:00:05]} 30. Qd7+ {[%clk 0:00:39]}  Kf8 {[%clk 0:00:04]} 31. Bd6+ {[%clk 0:00:32]}  Kg8 {[%clk 0:00:04]} 32. Qe8+ {[%clk 0:00:32]}  Kh7 {[%clk 0:00:04]} 33. Qe7+ {[%clk 0:00:27]}  Kg8 {[%clk 0:00:03]} 34. Rg1 {[%clk 0:00:26]}  h3 {[%clk 0:00:01]} 35. Qf7+ {[%clk 0:00:25]} 1-0


[Site "https://www.chess.com"]

[Event "Titled Tuesday Blitz May 2 Late 2023"]
[White "Romero Ruscalleda, Josep"]
[Black "Rottenwohrer Suarez, Juan"]
[WhiteFideId "2231859"]
[BlackFideId "32068182"]
[WhiteElo "2183"]
[BlackElo "2174"]
[Result "1-0"]
[Round "08"]
[TimeControl "180+2"]
[Date "2023.05.02"]
[WhiteClock "0:00:11"]
[BlackClock "0:00:03"]

1. e4 {[%clk 0:03:00]}  c5 {[%clk 0:02:56]} 2. c3 {[%clk 0:03:00]}  Nf6 {[%clk 0:02:55]} 3. e5 {[%clk 0:03:00]}  Nd5 {[%clk 0:02:56]} 4. Nf3 {[%clk 0:03:01]}  d6 {[%clk 0:02:56]} 5. Bc4 {[%clk 0:03:00]}  Nb6 {[%clk 0:02:55]} 6. e6 {[%clk 0:03:00]}  Bxe6 {[%clk 0:02:17]} 7. Bxe6 {[%clk 0:02:58]}  fxe6 {[%clk 0:02:17]} 8. Ng5 {[%clk 0:02:57]}  h6 {[%clk 0:01:36]} 9. Nxe6 {[%clk 0:02:41]}  Qc8 {[%clk 0:01:35]} 10. Qh5+ {[%clk 0:02:33]}  Kd7 {[%clk 0:01:30]} 11. Qf5 {[%clk 0:02:32]}  Kc6 {[%clk 0:01:21]} 12. d4 {[%clk 0:02:23]}  N8d7 {[%clk 0:00:44]} 13. a4 {[%clk 0:02:11]}  Nf6 {[%clk 0:00:43]} 14. dxc5 {[%clk 0:01:58]}  g6 {[%clk 0:00:34]} 15. Nd4+ {[%clk 0:01:43]}  Kc7 {[%clk 0:00:15]} 16. cxb6+ {[%clk 0:01:40]}  axb6 {[%clk 0:00:16]} 17. Nb5+ {[%clk 0:01:29]}  Kd8 {[%clk 0:00:16]} 18. Qxg6 {[%clk 0:01:18]}  Rg8 {[%clk 0:00:11]} 19. Qf7 {[%clk 0:01:16]}  Qg4 {[%clk 0:00:06]} 20. Be3 {[%clk 0:01:07]}  Qxg2 {[%clk 0:00:05]} 21. Bxb6+ {[%clk 0:00:59]}  Kd7 {[%clk 0:00:06]} 22. Rf1 {[%clk 0:00:55]}  Qe4+ {[%clk 0:00:06]} 23. Be3 {[%clk 0:00:55]}  Rxa4 {[%clk 0:00:07]} 24. Rxa4 {[%clk 0:00:40]}  Qxa4 {[%clk 0:00:08]} 25. Nd4 {[%clk 0:00:32]}  Qa1 {[%clk 0:00:08]} 26. Qe6+ {[%clk 0:00:31]}  Kd8 {[%clk 0:00:08]} 27. Qf5 {[%clk 0:00:19]}  Qxb2 {[%clk 0:00:08]} 28. Ne6+ {[%clk 0:00:18]}  Ke8 {[%clk 0:00:08]} 29. Nd2 {[%clk 0:00:17]}  Qxc3 {[%clk 0:00:06]} 30. Qb5+ {[%clk 0:00:16]}  Kf7 {[%clk 0:00:05]} 31. Bd4 {[%clk 0:00:13]}  Qc1+ {[%clk 0:00:02]} 32. Ke2 {[%clk 0:00:13]}  Qc6 {[%clk 0:00:02]} 33. Nd8+ {[%clk 0:00:11]}  Ke8 {[%clk 0:00:01]} 34. Nxc6 {[%clk 0:00:11]}  bxc6 {[%clk 0:00:02]} 35. Qxc6+ {[%clk 0:00:11]}  Kf7 {[%clk 0:00:03]} 36. Qc4+ {[%clk 0:00:11]} 1-0


[Site "https://www.chess.com"]

[Event "Titled Tuesday Blitz May 2 Late 2023"]
[White "Fernandez Siles, Luis"]
[Black "Srdanovic, Jovana"]
[WhiteFideId "2209420"]
[BlackFideId "954810"]
[WhiteElo "2195"]
[BlackElo "2145"]
[Result "1-0"]
[Round "08"]
[TimeControl "180+2"]
[Date "2023.05.02"]
[WhiteClock "0:00:19"]
[BlackClock "0:00:05"]

1. e4 {[%clk 0:03:00]}  c5 {[%clk 0:02:57]} 2. Nf3 {[%clk 0:03:00]}  e6 {[%clk 0:02:57]} 3. c3 {[%clk 0:03:00]}  d5 {[%clk 0:02:56]} 4. exd5 {[%clk 0:03:01]}  exd5 {[%clk 0:02:55]} 5. d4 {[%clk 0:03:00]}  Nf6 {[%clk 0:02:55]} 6. Bb5+ {[%clk 0:03:00]}  Bd7 {[%clk 0:02:45]} 7. Bxd7+ {[%clk 0:02:56]}  Nbxd7 {[%clk 0:02:45]} 8. O-O {[%clk 0:02:56]}  Be7 {[%clk 0:02:45]} 9. dxc5 {[%clk 0:02:54]}  Nxc5 {[%clk 0:02:46]} 10. Nbd2 {[%clk 0:02:53]}  O-O {[%clk 0:02:45]} 11. Nb3 {[%clk 0:02:53]}  Nce4 {[%clk 0:02:43]} 12. Be3 {[%clk 0:02:51]}  h6 {[%clk 0:02:32]} 13. Nfd4 {[%clk 0:02:51]}  Qd7 {[%clk 0:02:26]} 14. Qf3 {[%clk 0:02:47]}  a6 {[%clk 0:02:17]} 15. Nf5 {[%clk 0:02:43]}  Rfe8 {[%clk 0:02:05]} 16. Rad1 {[%clk 0:02:28]}  Qa4 {[%clk 0:01:50]} 17. Nbd4 {[%clk 0:02:08]}  Qxa2 {[%clk 0:01:26]} 18. Nxg7 {[%clk 0:02:06]}  Kxg7 {[%clk 0:01:13]} 19. Nf5+ {[%clk 0:02:06]}  Kh8 {[%clk 0:01:07]} 20. Bxh6 {[%clk 0:01:59]}  Bf8 {[%clk 0:01:03]} 21. Qh3 {[%clk 0:01:38]}  Nh7 {[%clk 0:01:03]} 22. Rd3 {[%clk 0:01:24]}  Qc4 {[%clk 0:00:58]} 23. Bxf8 {[%clk 0:01:03]}  Rxf8 {[%clk 0:00:52]} 24. Qh6 {[%clk 0:01:01]}  Rg8 {[%clk 0:00:49]} 25. Rh3 {[%clk 0:00:59]}  Rxg2+ {[%clk 0:00:28]} 26. Kxg2 {[%clk 0:00:49]}  Rg8+ {[%clk 0:00:28]} 27. Ng3 {[%clk 0:00:40]}  Rg7 {[%clk 0:00:12]} 28. Re1 {[%clk 0:00:35]}  Qc5 {[%clk 0:00:08]} 29. Re3 {[%clk 0:00:29]}  a5 {[%clk 0:00:04]} 30. Rh4 {[%clk 0:00:20]}  a4 {[%clk 0:00:02]} 31. h3 {[%clk 0:00:17]}  a3 {[%clk 0:00:02]} 32. bxa3 {[%clk 0:00:18]}  b5 {[%clk 0:00:02]} 33. Rg4 {[%clk 0:00:18]}  Qf8 {[%clk 0:00:01]} 34. Rxg7 {[%clk 0:00:17]}  Qxg7 {[%clk 0:00:02]} 35. Qxg7+ {[%clk 0:00:18]}  Kxg7 {[%clk 0:00:03]} 36. Nxe4 {[%clk 0:00:18]}  dxe4 {[%clk 0:00:04]} 37. Rxe4 {[%clk 0:00:19]}  Nf6 {[%clk 0:00:05]} 38. Rb4 {[%clk 0:00:19]} 1-0


[Site "https://www.chess.com"]

[Event "Titled Tuesday Blitz May 2 Late 2023"]
[White "Estremera Panos, Sergio"]
[Black "Gatterer, Florian"]
[WhiteFideId "2200864"]
[BlackFideId "811688"]
[WhiteElo "2253"]
[BlackElo "2221"]
[Result "1-0"]
[Round "08"]
[TimeControl "180+2"]
[Date "2023.05.02"]
[WhiteClock "0:00:21"]
[BlackClock "0:00:14"]

1. d4 {[%clk 0:03:00]}  Nf6 {[%clk 0:02:59]} 2. c4 {[%clk 0:03:01]}  g6 {[%clk 0:02:59]} 3. Nc3 {[%clk 0:03:01]}  d5 {[%clk 0:03:00]} 4. cxd5 {[%clk 0:03:01]}  Nxd5 {[%clk 0:02:59]} 5. e4 {[%clk 0:03:01]}  Nxc3 {[%clk 0:02:59]} 6. bxc3 {[%clk 0:03:02]}  Bg7 {[%clk 0:02:59]} 7. Nf3 {[%clk 0:03:03]}  c5 {[%clk 0:02:59]} 8. Bb5+ {[%clk 0:03:03]}  Bd7 {[%clk 0:02:52]} 9. Bxd7+ {[%clk 0:03:03]}  Nxd7 {[%clk 0:02:50]} 10. O-O {[%clk 0:03:02]}  O-O {[%clk 0:02:45]} 11. Rb1 {[%clk 0:02:48]}  b6 {[%clk 0:02:37]} 12. Bf4 {[%clk 0:02:46]}  cxd4 {[%clk 0:02:32]} 13. cxd4 {[%clk 0:02:46]}  e6 {[%clk 0:02:26]} 14. Qd2 {[%clk 0:02:40]}  Re8 {[%clk 0:02:17]} 15. Rbc1 {[%clk 0:02:38]}  Rc8 {[%clk 0:02:17]} 16. Rxc8 {[%clk 0:02:35]}  Qxc8 {[%clk 0:02:17]} 17. Rc1 {[%clk 0:02:35]}  Qa6 {[%clk 0:02:09]} 18. Rc7 {[%clk 0:02:29]}  Nf6 {[%clk 0:02:04]} 19. Qc2 {[%clk 0:02:24]}  Nh5 {[%clk 0:01:28]} 20. Be3 {[%clk 0:02:22]}  h6 {[%clk 0:00:58]} 21. h3 {[%clk 0:02:22]}  Qa3 {[%clk 0:00:53]} 22. Qc6 {[%clk 0:02:19]}  Rf8 {[%clk 0:00:44]} 23. Qc4 {[%clk 0:02:15]}  Nf6 {[%clk 0:00:33]} 24. d5 {[%clk 0:02:01]}  exd5 {[%clk 0:00:27]} 25. exd5 {[%clk 0:02:02]}  Ne8 {[%clk 0:00:27]} 26. Rd7 {[%clk 0:01:35]}  Nd6 {[%clk 0:00:26]} 27. Qc6 {[%clk 0:01:26]}  Nf5 {[%clk 0:00:24]} 28. Bf4 {[%clk 0:01:12]}  Qxa2 {[%clk 0:00:24]} 29. d6 {[%clk 0:01:06]}  Qe6 {[%clk 0:00:19]} 30. Rxa7 {[%clk 0:00:55]}  g5 {[%clk 0:00:19]} 31. Bh2 {[%clk 0:00:47]}  Rc8 {[%clk 0:00:19]} 32. Rc7 {[%clk 0:00:40]}  Re8 {[%clk 0:00:17]} 33. Bg3 {[%clk 0:00:36]}  Nxg3 {[%clk 0:00:16]} 34. fxg3 {[%clk 0:00:36]}  Qe3+ {[%clk 0:00:15]} 35. Kh2 {[%clk 0:00:36]}  g4 {[%clk 0:00:15]} 36. hxg4 {[%clk 0:00:34]}  Qe6 {[%clk 0:00:10]} 37. Qxe8+ {[%clk 0:00:18]}  Qxe8 {[%clk 0:00:09]} 38. d7 {[%clk 0:00:19]}  Qe7 {[%clk 0:00:07]} 39. Rc8+ {[%clk 0:00:19]}  Bf8 {[%clk 0:00:06]} 40. d8=Q {[%clk 0:00:19]}  Qb4 {[%clk 0:00:05]} 41. Ne5 {[%clk 0:00:12]}  Kg7 {[%clk 0:00:06]} 42. Qxf8+ {[%clk 0:00:11]}  Qxf8 {[%clk 0:00:05]} 43. Rxf8 {[%clk 0:00:12]}  Kxf8 {[%clk 0:00:06]} 44. Nd7+ {[%clk 0:00:13]}  Ke7 {[%clk 0:00:06]} 45. Nxb6 {[%clk 0:00:14]}  Kf6 {[%clk 0:00:06]} 46. Nc4 {[%clk 0:00:14]}  Kg5 {[%clk 0:00:06]} 47. Nd2 {[%clk 0:00:15]}  f5 {[%clk 0:00:06]} 48. gxf5 {[%clk 0:00:15]}  Kxf5 {[%clk 0:00:07]} 49. Nf3 {[%clk 0:00:15]}  Kg4 {[%clk 0:00:07]} 50. Ne5+ {[%clk 0:00:15]}  Kf5 {[%clk 0:00:07]} 51. Nd3 {[%clk 0:00:15]}  Kg4 {[%clk 0:00:07]} 52. Nf2+ {[%clk 0:00:16]}  Kg5 {[%clk 0:00:07]} 53. Kh3 {[%clk 0:00:16]}  h5 {[%clk 0:00:08]} 54. g4 {[%clk 0:00:16]}  hxg4+ {[%clk 0:00:08]} 55. Nxg4 {[%clk 0:00:17]}  Kf5 {[%clk 0:00:09]} 56. Nf2 {[%clk 0:00:17]}  Kf4 {[%clk 0:00:09]} 57. g4 {[%clk 0:00:18]}  Kg5 {[%clk 0:00:08]} 58. Kg3 {[%clk 0:00:19]}  Kf6 {[%clk 0:00:09]} 59. Ne4+ {[%clk 0:00:19]}  Kg6 {[%clk 0:00:10]} 60. Kf4 {[%clk 0:00:19]}  Kg7 {[%clk 0:00:11]} 61. g5 {[%clk 0:00:20]}  Kf7 {[%clk 0:00:12]} 62. Kf5 {[%clk 0:00:20]}  Kg8 {[%clk 0:00:13]} 63. Kg6 {[%clk 0:00:20]}  Kh8 {[%clk 0:00:14]} 64. Kf7 {[%clk 0:00:20]}  Kh7 {[%clk 0:00:13]} 65. g6+ {[%clk 0:00:20]}  Kh6 {[%clk 0:00:14]} 66. g7 {[%clk 0:00:21]}  Kh5 {[%clk 0:00:14]} 67. g8=Q {[%clk 0:00:21]} 1-0


[Site "https://www.chess.com"]

[Event "Titled Tuesday Blitz May 2 Late 2023"]
[White "Piesik, Piotr"]
[Black "Georg, Heinz"]
[WhiteFideId "1136194"]
[BlackFideId "4607295"]
[WhiteElo "2299"]
[BlackElo "2147"]
[Result "0-1"]
[Round "08"]
[TimeControl "180+2"]
[Date "2023.05.02"]
[WhiteClock "0:01:41"]
[BlackClock "0:01:35"]

1. Nf3 {[%clk 0:03:00]}  f5 {[%clk 0:02:58]} 2. d3 {[%clk 0:03:00]}  Nc6 {[%clk 0:02:57]} 3. d4 {[%clk 0:02:59]}  d6 {[%clk 0:02:43]} 4. d5 {[%clk 0:02:58]}  Ne5 {[%clk 0:02:42]} 5. Nxe5 {[%clk 0:02:58]}  dxe5 {[%clk 0:02:43]} 6. e4 {[%clk 0:02:58]}  e6 {[%clk 0:02:40]} 7. Nc3 {[%clk 0:02:54]}  Nf6 {[%clk 0:02:39]} 8. Bg5 {[%clk 0:02:52]}  exd5 {[%clk 0:02:30]} 9. Nxd5 {[%clk 0:02:50]}  Be7 {[%clk 0:02:27]} 10. Bxf6 {[%clk 0:02:49]}  Bxf6 {[%clk 0:02:27]} 11. Bc4 {[%clk 0:02:45]}  c6 {[%clk 0:02:22]} 12. Nxf6+ {[%clk 0:02:39]}  Qxf6 {[%clk 0:02:23]} 13. Qh5+ {[%clk 0:02:35]}  g6 {[%clk 0:02:20]} 14. Qh6 {[%clk 0:02:35]}  Be6 {[%clk 0:02:17]} 15. Bxe6 {[%clk 0:02:35]}  Qxe6 {[%clk 0:02:18]} 16. O-O-O {[%clk 0:02:20]}  Qxa2 {[%clk 0:01:55]} 17. Rd6 {[%clk 0:01:46]}  Rd8 {[%clk 0:01:35]} 18. Rxd8+ {[%clk 0:01:43]}  Kxd8 {[%clk 0:01:36]} 19. Rd1+ {[%clk 0:01:42]}  Kc8 {[%clk 0:01:35]} 20. Qg7 {[%clk 0:01:41]}  Qa1+ {[%clk 0:01:35]} 21. Kd2 {[%clk 0:01:41]}  Rd8+ {[%clk 0:01:35]} 0-1


[Site "https://www.chess.com"]

[Event "Titled Tuesday Blitz May 2 Late 2023"]
[White "Torres Dominguez, David"]
[Black "Kujawski, Adam"]
[WhiteFideId "2220857"]
[BlackFideId "1100920"]
[WhiteElo "1999"]
[BlackElo "2054"]
[Result "0-1"]
[Round "08"]
[TimeControl "180+2"]
[Date "2023.05.02"]
[WhiteClock "0:00:02"]
[BlackClock "0:00:05"]

1. e4 {[%clk 0:02:43]}  e5 {[%clk 0:02:59]} 2. Bc4 {[%clk 0:02:42]}  Nf6 {[%clk 0:02:58]} 3. Nc3 {[%clk 0:02:42]}  Nxe4 {[%clk 0:02:58]} 4. Qh5 {[%clk 0:02:41]}  Nd6 {[%clk 0:02:57]} 5. Qxe5+ {[%clk 0:02:40]}  Qe7 {[%clk 0:02:56]} 6. Qxe7+ {[%clk 0:02:38]}  Bxe7 {[%clk 0:02:57]} 7. Be2 {[%clk 0:02:39]}  c6 {[%clk 0:02:56]} 8. Nf3 {[%clk 0:02:32]}  Nf5 {[%clk 0:02:52]} 9. g4 {[%clk 0:02:32]}  Nh4 {[%clk 0:02:51]} 10. Nxh4 {[%clk 0:02:30]}  Bxh4 {[%clk 0:02:52]} 11. Ne4 {[%clk 0:02:24]}  Be7 {[%clk 0:02:31]} 12. d3 {[%clk 0:02:17]}  d5 {[%clk 0:02:30]} 13. Ng3 {[%clk 0:02:16]}  Be6 {[%clk 0:02:12]} 14. h4 {[%clk 0:02:11]}  Nd7 {[%clk 0:02:10]} 15. Bg5 {[%clk 0:02:05]}  f6 {[%clk 0:02:08]} 16. Be3 {[%clk 0:02:01]}  b6 {[%clk 0:01:45]} 17. f3 {[%clk 0:01:55]}  O-O-O {[%clk 0:01:45]} 18. Kf2 {[%clk 0:01:52]}  Rhe8 {[%clk 0:01:44]} 19. Rae1 {[%clk 0:01:46]}  Bd6 {[%clk 0:01:42]} 20. Nh5 {[%clk 0:01:33]}  Re7 {[%clk 0:01:31]} 21. d4 {[%clk 0:01:30]}  g6 {[%clk 0:01:28]} 22. Bf4 {[%clk 0:01:25]}  Kc7 {[%clk 0:01:00]} 23. Bxd6+ {[%clk 0:01:22]}  Kxd6 {[%clk 0:01:01]} 24. Nf4 {[%clk 0:01:22]}  Rde8 {[%clk 0:01:01]} 25. Bd3 {[%clk 0:01:17]}  c5 {[%clk 0:00:57]} 26. c3 {[%clk 0:01:15]}  c4 {[%clk 0:00:55]} 27. Bc2 {[%clk 0:01:13]}  b5 {[%clk 0:00:53]} 28. g5 {[%clk 0:01:02]}  Rf8 {[%clk 0:00:41]} 29. gxf6 {[%clk 0:00:38]}  Nxf6 {[%clk 0:00:39]} 30. Bxg6 {[%clk 0:00:32]}  hxg6 {[%clk 0:00:29]} 31. Nxg6 {[%clk 0:00:32]}  Ne4+ {[%clk 0:00:26]} 32. Rxe4 {[%clk 0:00:26]}  dxe4 {[%clk 0:00:26]} 33. Nxf8 {[%clk 0:00:23]}  exf3 {[%clk 0:00:25]} 34. Nxe6 {[%clk 0:00:20]}  Rxe6 {[%clk 0:00:22]} 35. Kxf3 {[%clk 0:00:20]}  Rf6+ {[%clk 0:00:21]} 36. Kg3 {[%clk 0:00:19]}  Rg6+ {[%clk 0:00:20]} 37. Kf4 {[%clk 0:00:19]}  Kd5 {[%clk 0:00:21]} 38. Re1 {[%clk 0:00:17]}  b4 {[%clk 0:00:20]} 39. Re5+ {[%clk 0:00:16]}  Kd6 {[%clk 0:00:21]} 40. h5 {[%clk 0:00:16]}  Rg2 {[%clk 0:00:20]} 41. h6 {[%clk 0:00:14]}  Rxb2 {[%clk 0:00:19]} 42. cxb4 {[%clk 0:00:14]}  Rh2 {[%clk 0:00:18]} 43. Rc5 {[%clk 0:00:11]}  Rxh6 {[%clk 0:00:16]} 44. Rxc4 {[%clk 0:00:11]}  Kd5 {[%clk 0:00:16]} 45. Rc7 {[%clk 0:00:11]}  a6 {[%clk 0:00:14]} 46. Rd7+ {[%clk 0:00:08]}  Kc4 {[%clk 0:00:14]} 47. a3 {[%clk 0:00:08]}  Re6 {[%clk 0:00:09]} 48. Kf5 {[%clk 0:00:08]}  Re3 {[%clk 0:00:08]} 49. d5 {[%clk 0:00:07]}  Rxa3 {[%clk 0:00:08]} 50. d6 {[%clk 0:00:08]}  Kxb4 {[%clk 0:00:08]} 51. Rc7 {[%clk 0:00:07]}  Rd3 {[%clk 0:00:07]} 52. d7 {[%clk 0:00:05]}  a5 {[%clk 0:00:07]} 53. Ke6 {[%clk 0:00:05]}  a4 {[%clk 0:00:07]} 54. Rb7+ {[%clk 0:00:04]}  Kc3 {[%clk 0:00:07]} 55. Rc7+ {[%clk 0:00:04]}  Kb3 {[%clk 0:00:06]} 56. Rb7+ {[%clk 0:00:04]}  Kc3 {[%clk 0:00:07]} 57. Rb8 {[%clk 0:00:04]}  a3 {[%clk 0:00:05]} 58. d8=Q {[%clk 0:00:02]}  Rxd8 {[%clk 0:00:05]} 0-1


[Site "https://www.chess.com"]

[Event "Titled Tuesday Blitz May 2 Late 2023"]
[White "Winkels, Marcel"]
[Black "Kohler, Aran"]
[WhiteFideId "1003887"]
[BlackFideId "1002856"]
[WhiteElo "1900"]
[BlackElo "2010"]
[Result "0-1"]
[Round "08"]
[TimeControl "180+2"]
[Date "2023.05.02"]
[WhiteClock "0:00:01"]
[BlackClock "0:00:49"]

1. d4 {[%clk 0:03:00]}  Nf6 {[%clk 0:02:57]} 2. Nc3 {[%clk 0:03:01]}  d5 {[%clk 0:02:56]} 3. Bf4 {[%clk 0:03:01]}  a6 {[%clk 0:02:55]} 4. e3 {[%clk 0:03:00]}  e6 {[%clk 0:02:56]} 5. Nf3 {[%clk 0:03:00]}  Bb4 {[%clk 0:02:56]} 6. Bd3 {[%clk 0:02:58]}  Bxc3+ {[%clk 0:02:53]} 7. bxc3 {[%clk 0:02:58]}  b5 {[%clk 0:02:54]} 8. O-O {[%clk 0:02:48]}  Bb7 {[%clk 0:02:54]} 9. Ne5 {[%clk 0:02:47]}  Nbd7 {[%clk 0:02:54]} 10. Qf3 {[%clk 0:02:41]}  c5 {[%clk 0:02:50]} 11. Nxd7 {[%clk 0:02:25]}  Qxd7 {[%clk 0:02:50]} 12. dxc5 {[%clk 0:02:23]}  d4 {[%clk 0:02:50]} 13. Qh3 {[%clk 0:02:04]}  dxc3 {[%clk 0:02:45]} 14. Bd6 {[%clk 0:02:03]}  Qc6 {[%clk 0:02:34]} 15. f3 {[%clk 0:01:53]}  Nd5 {[%clk 0:02:29]} 16. Rfe1 {[%clk 0:01:43]}  O-O-O {[%clk 0:02:24]} 17. a4 {[%clk 0:01:42]}  b4 {[%clk 0:02:23]} 18. Qg3 {[%clk 0:01:29]}  g6 {[%clk 0:02:21]} 19. Qe5 {[%clk 0:01:11]}  Rhe8 {[%clk 0:02:15]} 20. e4 {[%clk 0:01:01]}  Nc7 {[%clk 0:02:05]} 21. Qd4 {[%clk 0:00:59]}  e5 {[%clk 0:02:02]} 22. Qxb4 {[%clk 0:00:59]}  Rd7 {[%clk 0:01:48]} 23. Ra3 {[%clk 0:00:48]}  Re6 {[%clk 0:01:44]} 24. Rxc3 {[%clk 0:00:44]}  Kd8 {[%clk 0:01:37]} 25. Rb3 {[%clk 0:00:41]}  Bc8 {[%clk 0:01:36]} 26. Bc4 {[%clk 0:00:34]}  Rexd6 {[%clk 0:01:27]} 27. cxd6 {[%clk 0:00:33]}  Rxd6 {[%clk 0:01:28]} 28. Bd3 {[%clk 0:00:26]}  Ke8 {[%clk 0:01:25]} 29. Reb1 {[%clk 0:00:24]}  Ne6 {[%clk 0:01:16]} 30. h3 {[%clk 0:00:24]}  Nd4 {[%clk 0:01:15]} 31. R3b2 {[%clk 0:00:23]}  Bd7 {[%clk 0:01:11]} 32. Qb8+ {[%clk 0:00:20]}  Ke7 {[%clk 0:01:11]} 33. Rb6 {[%clk 0:00:18]}  Qc5 {[%clk 0:01:11]} 34. Rxd6 {[%clk 0:00:17]}  Nc6+ {[%clk 0:01:06]} 35. Kf1 {[%clk 0:00:08]}  Nxb8 {[%clk 0:01:05]} 36. Rd5 {[%clk 0:00:06]}  Qc3 {[%clk 0:01:02]} 37. Rxb8 {[%clk 0:00:04]}  Bxa4 {[%clk 0:00:53]} 38. Rb7+ {[%clk 0:00:03]}  Kf8 {[%clk 0:00:52]} 39. Rd8+ {[%clk 0:00:01]}  Kg7 {[%clk 0:00:52]} 40. Rbb8 {[%clk 0:00:02]}  Bxc2 {[%clk 0:00:51]} 41. Rbc8 {[%clk 0:00:01]}  Bxd3+ {[%clk 0:00:49]} 0-1


[Site "https://www.chess.com"]

[Event "Titled Tuesday Blitz May 2 Late 2023"]
[White "Fuentes Godoy, Lilia Ivonne"]
[Black "Harish, Neeraj"]
[WhiteFideId "5104130"]
[BlackFideId "30958130"]
[WhiteElo "2096"]
[BlackElo "1965"]
[Result "1-0"]
[Round "08"]
[TimeControl "180+2"]
[Date "2023.05.02"]
[WhiteClock "0:02:19"]
[BlackClock "0:02:17"]

1. d4 {[%clk 0:03:00]}  d5 {[%clk 0:02:58]} 2. c4 {[%clk 0:03:00]}  e6 {[%clk 0:02:57]} 3. Nf3 {[%clk 0:03:00]}  Nf6 {[%clk 0:02:58]} 4. g3 {[%clk 0:02:59]}  Be7 {[%clk 0:02:58]} 5. Bg2 {[%clk 0:02:59]}  O-O {[%clk 0:02:59]} 6. O-O {[%clk 0:02:54]}  dxc4 {[%clk 0:02:59]} 7. Ne5 {[%clk 0:02:50]}  Nc6 {[%clk 0:02:58]} 8. Bxc6 {[%clk 0:02:51]}  bxc6 {[%clk 0:02:59]} 9. Nxc6 {[%clk 0:02:50]}  Qe8 {[%clk 0:03:00]} 10. Nxe7+ {[%clk 0:02:51]}  Qxe7 {[%clk 0:03:01]} 11. Qa4 {[%clk 0:02:50]}  e5 {[%clk 0:02:50]} 12. dxe5 {[%clk 0:02:47]}  Qxe5 {[%clk 0:02:51]} 13. Qxc4 {[%clk 0:02:47]}  Be6 {[%clk 0:02:47]} 14. Qc3 {[%clk 0:02:35]}  Qxe2 {[%clk 0:02:28]} 15. Re1 {[%clk 0:02:20]}  Qf3 {[%clk 0:02:17]} 16. Qxf3 {[%clk 0:02:19]} 1-0


[Site "https://www.chess.com"]

[Event "Titled Tuesday Blitz May 2 Late 2023"]
[White "Roman, Rodrigo"]
[Black "Van Baar, Esper"]
[WhiteFideId "3701220"]
[BlackFideId "1049321"]
[WhiteElo "1995"]
[BlackElo "2180"]
[Result "0-1"]
[Round "08"]
[TimeControl "180+2"]
[Date "2023.05.02"]
[WhiteClock "0:00:01"]
[BlackClock "0:00:04"]

1. Nf3 {[%clk 0:03:00]}  Nf6 {[%clk 0:02:50]} 2. b3 {[%clk 0:03:00]}  d5 {[%clk 0:02:50]} 3. Bb2 {[%clk 0:03:00]}  Bg4 {[%clk 0:02:50]} 4. e3 {[%clk 0:03:00]}  e6 {[%clk 0:02:50]} 5. Be2 {[%clk 0:03:00]}  Bd6 {[%clk 0:02:47]} 6. c4 {[%clk 0:03:00]}  c6 {[%clk 0:02:47]} 7. Ne5 {[%clk 0:02:58]}  Bxe2 {[%clk 0:02:47]} 8. Qxe2 {[%clk 0:02:59]}  Nbd7 {[%clk 0:02:46]} 9. f4 {[%clk 0:02:58]}  O-O {[%clk 0:02:45]} 10. O-O {[%clk 0:02:58]}  Qc7 {[%clk 0:02:44]} 11. Nxd7 {[%clk 0:02:30]}  Nxd7 {[%clk 0:02:37]} 12. Nc3 {[%clk 0:02:30]}  Nf6 {[%clk 0:02:31]} 13. d4 {[%clk 0:02:18]}  Qe7 {[%clk 0:02:20]} 14. e4 {[%clk 0:01:47]}  dxe4 {[%clk 0:02:19]} 15. Nxe4 {[%clk 0:01:46]}  Nxe4 {[%clk 0:02:18]} 16. Qxe4 {[%clk 0:01:46]}  Ba3 {[%clk 0:02:11]} 17. Bc3 {[%clk 0:01:46]}  Bb4 {[%clk 0:02:11]} 18. Rac1 {[%clk 0:01:46]}  Bxc3 {[%clk 0:02:10]} 19. Rxc3 {[%clk 0:01:47]}  a5 {[%clk 0:02:05]} 20. f5 {[%clk 0:01:45]}  Qb4 {[%clk 0:01:58]} 21. Rg3 {[%clk 0:01:39]}  exf5 {[%clk 0:01:57]} 22. Qe5 {[%clk 0:01:34]}  g6 {[%clk 0:01:36]} 23. h4 {[%clk 0:01:21]}  Rae8 {[%clk 0:01:34]} 24. Qxf5 {[%clk 0:01:20]}  Qd2 {[%clk 0:01:08]} 25. Rg4 {[%clk 0:00:25]}  Re1 {[%clk 0:00:49]} 26. h5 {[%clk 0:00:17]}  Qe3+ {[%clk 0:00:33]} 27. Kh2 {[%clk 0:00:09]}  Rxf1 {[%clk 0:00:22]} 28. Qxf1 {[%clk 0:00:09]}  Re8 {[%clk 0:00:16]} 29. Rf4 {[%clk 0:00:08]}  Re4 {[%clk 0:00:12]} 30. Rxe4 {[%clk 0:00:06]}  Qxe4 {[%clk 0:00:11]} 31. Qf6 {[%clk 0:00:07]}  gxh5 {[%clk 0:00:08]} 32. Qg5+ {[%clk 0:00:05]}  Qg6 {[%clk 0:00:08]} 33. Qd8+ {[%clk 0:00:05]}  Kg7 {[%clk 0:00:08]} 34. Qe7 {[%clk 0:00:05]}  Qg4 {[%clk 0:00:05]} 35. d5 {[%clk 0:00:03]}  h4 {[%clk 0:00:04]} 36. d6 {[%clk 0:00:02]}  Qg3+ {[%clk 0:00:03]} 37. Kh1 {[%clk 0:00:01]}  h3 {[%clk 0:00:03]} 38. gxh3 {[%clk 0:00:02]}  Qxh3+ {[%clk 0:00:03]} 39. Kg1 {[%clk 0:00:03]}  Qg3+ {[%clk 0:00:04]} 40. Kf1 {[%clk 0:00:04]}  Qf3+ {[%clk 0:00:04]} 41. Ke1 {[%clk 0:00:04]}  Qc3+ {[%clk 0:00:04]} 42. Ke2 {[%clk 0:00:04]}  Qc2+ {[%clk 0:00:04]} 43. Ke3 {[%clk 0:00:05]}  Qc3+ {[%clk 0:00:04]} 44. Ke4 {[%clk 0:00:06]}  Qc2+ {[%clk 0:00:04]} 45. Kd4 {[%clk 0:00:04]}  Qd2+ {[%clk 0:00:03]} 46. Ke5 {[%clk 0:00:02]}  Qe3+ {[%clk 0:00:03]} 47. Kf5 {[%clk 0:00:01]}  Qf3+ {[%clk 0:00:04]} 0-1


[Site "https://www.chess.com"]